bitfinex/quotes_BTCUSD_20250206
["timestamp","ask_amount","ask_price","bid_price","bid_amount"]
[1738847958736,0.16658838,98424.0,98423.0,0.00815502]
[1738847958926,0.16658838,98424.0,98423.0,0.0001067]
[1738847959123,0.22467442,98424.0,98423.0,0.0001067]
[1738847959521,0.32717807,98424.0,98423.0,0.0001067]
[1738847959922,0.26909203,98424.0,98423.0,0.0001067]
[1738847961368,0.28219462,98424.0,98423.0,0.0001067]
[1738847961644,0.40529462,98424.0,98423.0,0.0001067]
[1738847962619,0.39219203,98424.0,98423.0,0.0001067]
[1738847963726,0.28968838,98424.0,98423.0,0.0001067]
[1738847965141,0.01388,98424.0,98423.0,0.0001067]
[1738847965782,0.01388,98424.0,98423.0,0.00814147]
[1738847965994,0.01388,98424.0,98423.0,0.0001067]
[1738847966182,0.006,98424.0,98423.0,0.00814147]
[1738847967402,0.006,98424.0,98423.0,0.0001067]
[1738847967741,0.18960365,98424.0,98423.0,0.0001067]
[1738847968379,0.18460365,98424.0,98423.0,0.0001067]
[1738847968583,0.33700465,98424.0,98423.0,0.0001067]
[1738847969439,0.38560465,98424.0,98423.0,0.0001067]
[1738847969962,0.71070465,98424.0,98423.0,0.0001067]
[1738847971891,0.72112508,98424.0,98423.0,0.0001067]
[1738847972517,0.72932578,98424.0,98423.0,0.0001067]
[1738847972690,0.82932578,98424.0,98423.0,0.0001067]
[1738847973513,0.81070465,98424.0,98423.0,0.0001067]
[1738847973729,0.71070465,98424.0,98423.0,0.0001067]
[1738847973930,0.43648365,98424.0,98423.0,0.0001067]
[1738847974131,0.58888465,98424.0,98423.0,0.0001067]
[1738847975417,0.001,98424.0,98423.0,0.0001067]
[1738847975664,0.001,98424.0,98423.0,0.16053683]
[1738847975908,0.001,98424.0,98423.0,0.1525097]
[1738847976151,0.001,98424.0,98423.0,0.16053683]
[1738847977489,0.001,98424.0,98423.0,0.00813383]
[1738847977890,0.001,98424.0,98423.0,0.16053683]
[1738847980988,0.001,98424.0,98423.0,0.00813383]
[1738847981806,0.00122428,98424.0,98423.0,0.00813383]
[1738847986078,0.15362528,98424.0,98423.0,0.00813383]
[1738847986285,0.22972528,98424.0,98423.0,0.00813383]
[1738847986487,0.22972528,98424.0,98423.0,0.0001067]
[1738847987680,0.07732428,98424.0,98423.0,0.0001067]
[1738847988070,0.15362528,98424.0,98423.0,0.00812435]
[1738847988251,0.15362528,98424.0,98423.0,0.0001067]
[1738847990730,0.47872528,98424.0,98423.0,0.0001067]
[1738847990991,0.32632428,98424.0,98423.0,0.0001067]
[1738847991400,0.32632428,98424.0,98423.0,0.1525097]
[1738847991601,0.32632428,98424.0,98423.0,0.00812435]
[1738847991845,0.32632428,98424.0,98423.0,0.0001067]
[1738847992015,0.47872528,98424.0,98423.0,0.0001067]
[1738847995503,0.60442528,98424.0,98423.0,0.0001067]
[1738847998271,0.32632428,98424.0,98423.0,0.0001067]
[1738847998724,0.47872528,98424.0,98423.0,0.00813293]
[1738847998959,0.47872528,98424.0,98423.0,0.0001067]
[1738848001267,0.80422893,98424.0,98423.0,0.0001067]
[1738848001499,0.85778578,98424.0,98423.0,0.0001067]
[1738848001994,1.00778578,98424.0,98423.0,0.0001067]
[1738848002481,1.03078578,98424.0,98423.0,0.0001067]
[1738848002988,1.06250436,98424.0,98423.0,0.0001067]
[1738848004024,1.00894751,98424.0,98423.0,0.0001067]
[1738848005003,0.89382751,98424.0,98423.0,0.0001067]
[1738848005247,0.71210893,98424.0,98423.0,0.0001067]
[1738848008428,0.70422893,98424.0,98423.0,0.0001067]
[1738848008654,0.71210893,98424.0,98423.0,0.0001067]
[1738848010390,0.33420428,98424.0,98423.0,0.0001067]
[1738848011062,0.33420428,98424.0,98423.0,0.00816107]
[1738848011063,0.32632428,98424.0,98423.0,0.00816107]
[1738848011267,0.32632428,98424.0,98423.0,0.16056407]
[1738848011874,0.00122428,98424.0,98423.0,0.16056407]
[1738848012292,0.00122428,98424.0,98423.0,0.23596407]
[1738848012867,0.00022428,98424.0,98423.0,0.36318333]
[1738848013135,0.00222428,98424.0,98423.0,0.36318333]
[1738848013273,0.00622428,98424.0,98423.0,0.51318333]
[1738848013474,0.00222428,98424.0,98423.0,0.51318333]
[1738848013932,0.00222428,98424.0,98423.0,0.51518333]
[1738848014289,0.00222428,98424.0,98423.0,0.51318333]
[1738848014488,0.00222428,98424.0,98423.0,0.51818333]
[1738848014737,0.00222428,98424.0,98423.0,0.51318333]
[1738848014937,0.00022428,98424.0,98423.0,0.51318333]
[1738848016091,0.00022428,98424.0,98423.0,0.51618333]
[1738848016500,0.00122428,98424.0,98423.0,0.52518333]
[1738848018711,0.00122428,98424.0,98423.0,0.29978333]
[1738848019988,0.00122428,98424.0,98423.0,0.28457372]
[1738848023740,0.00122428,98424.0,98423.0,0.43457372]
[1738848023946,0.00122428,98424.0,98423.0,0.50997372]
[1738848024772,2.8e-07,98424.0,98423.0,0.53297372]
[1738848024971,0.00022408,98439.0,98438.0,0.37778]
[1738848025157,0.00022408,98439.0,98438.0,0.48028365]
[1738848025374,0.00022408,98439.0,98438.0,0.48821109]
[1738848025735,0.00022408,98439.0,98438.0,0.5007932]
[1738848026327,0.00022408,98439.0,98438.0,0.5698932]
[1738848027174,0.00022408,98439.0,98438.0,0.579948]
[1738848027378,0.00022408,98439.0,98438.0,0.587948]
[1738848027587,0.00022408,98439.0,98438.0,0.60035295]
[1738848027812,0.00022408,98439.0,98438.0,0.57835295]
[1738848028046,0.00022408,98439.0,98438.0,0.566948]
[1738848028281,0.00022408,98439.0,98438.0,0.444448]
[1738848028532,0.00022408,98439.0,98438.0,0.294448]
[1738848028755,0.00022408,98439.0,98438.0,0.03658555]
[1738848028965,0.00022408,98439.0,98438.0,0.18896555]
[1738848029183,0.00022408,98439.0,98438.0,0.17703811]
[1738848029411,0.00022408,98439.0,98438.0,0.0325574]
[1738848029636,0.00022408,98439.0,98438.0,0.1849374]
[1738848030141,0.00022408,98439.0,98438.0,0.1939374]
[1738848030327,0.00022408,98439.0,98438.0,0.16927929]
[1738848030475,0.00022408,98439.0,98438.0,0.16327929]
[1738848030693,0.00022408,98439.0,98438.0,0.16727929]
[1738848030890,0.00022408,98439.0,98438.0,0.16427929]
[1738848031276,0.00022408,98439.0,98438.0,0.26678294]
[1738848031890,0.00022408,98439.0,98438.0,0.26277965]
[1738848032098,0.00022408,98439.0,98438.0,0.25877965]
[1738848033935,0.00022408,98439.0,98438.0,0.26277965]
[1738848034365,0.15260208,98439.0,98438.0,0.004896]
[1738848034590,0.07622408,98439.0,98438.0,0.008896]
[1738848035022,0.07622408,98439.0,98438.0,0.160276]
[1738848037300,0.00022408,98439.0,98438.0,0.160276]
[1738848038588,0.00022408,98439.0,98438.0,0.26277965]
[1738848040338,0.00022408,98439.0,98438.0,0.25877965]
[1738848040487,0.00022408,98439.0,98438.0,0.268275]
[1738848040706,0.00022408,98439.0,98438.0,0.16577135]
[1738848041105,0.00022408,98439.0,98438.0,0.16677135]
[1738848041304,0.00022408,98439.0,98438.0,0.17077135]
[1738848041672,0.00022408,98439.0,98438.0,0.268275]
[1738848041847,0.00022408,98439.0,98438.0,0.272275]
[1738848042383,0.00022408,98439.0,98438.0,0.268275]
[1738848042594,0.00022408,98439.0,98438.0,0.28348555]
[1738848042811,0.22820208,98439.0,98438.0,0.0296019]
[1738848043013,0.27590208,98439.0,98438.0,0.0296019]
[1738848043235,0.27590208,98439.0,98438.0,0.0257059]
[1738848043658,0.27590208,98439.0,98438.0,0.005]
[1738848043659,0.60100208,98439.0,98438.0,0.005]
[1738848043871,0.60100208,98439.0,98438.0,0.001]
[1738848044287,0.203193,98429.0,98423.0,0.0001067]
[1738848044487,0.58628482,98429.0,98423.0,0.0001067]
[1738848044673,0.58628482,98429.0,98425.0,0.152398]
[1738848044902,0.58628482,98429.0,98426.0,0.1562941]
[1738848045933,0.58628482,98429.0,98427.0,0.152397]
[1738848046153,0.58628482,98429.0,98428.0,0.152395]
[1738848046367,0.58628482,98429.0,98428.0,0.15629731]
[1738848047636,0.58628482,98429.0,98428.0,0.16029731]
[1738848048459,0.58628482,98429.0,98428.0,0.26280096]
[1738848049668,0.73867882,98429.0,98428.0,0.00790231]
[1738848049835,0.66128482,98429.0,98428.0,0.004]
[1738848050048,0.66128482,98429.0,98428.0,0.156395]
[1738848050227,0.66128482,98429.0,98428.0,0.16030803]
[1738848051278,0.66128482,98429.0,98428.0,0.00801973]
[1738848051505,0.81367882,98429.0,98428.0,0.00801973]
[1738848051885,0.66128482,98429.0,98428.0,0.0041067]
[1738848052303,0.66128482,98429.0,98428.0,0.1565017]
[1738848052573,0.81367882,98429.0,98428.0,0.00801973]
[1738848052985,0.81367882,98429.0,98428.0,0.0041067]
[1738848054128,1.66668612,98429.0,98428.0,0.0041067]
[1738848054385,0.302401,98424.0,98423.0,0.0001067]
[1738848054627,0.53100465,98424.0,98423.0,0.0001067]
[1738848059011,0.85610465,98424.0,98423.0,0.0001067]
[1738848061514,0.86010465,98424.0,98423.0,0.0001067]
[1738848063729,0.9626083,98424.0,98423.0,0.0001067]
[1738848063959,0.615481,98424.0,98423.0,0.0001067]
[1738848064178,0.46308,98424.0,98423.0,0.0001067]
[1738848064825,0.4013,98424.0,98423.0,0.0001067]
[1738848065041,0.4013,98424.0,98423.0,0.1525097]
[1738848065042,0.3251,98424.0,98423.0,0.1525097]
[1738848065255,0.004,98424.0,98423.0,0.1525097]
[1738848065463,0.58628482,98429.0,98428.0,0.152395]
[1738848065669,0.58628482,98429.0,98428.0,0.15652516]
[1738848068242,0.001,98429.0,98428.0,0.00413016]
[1738848068460,0.001,98429.0,98428.0,0.25489865]
[1738848068666,0.001,98429.0,98428.0,0.25865334]
[1738848069091,0.00022408,98439.0,98437.0,0.152381]
[1738848069539,0.00022408,98439.0,98437.0,0.15613215]
[1738848071880,0.00022408,98439.0,98437.0,0.15713215]
[1738848075171,0.00022408,98439.0,98437.0,0.2596358]
[1738848075581,0.00022408,98439.0,98437.0,0.26911308]
[1738848076227,0.00022408,98439.0,98437.0,0.27949533]
[1738848077300,0.00022408,98439.0,98437.0,0.27849533]
[1738848077763,0.00022408,98439.0,98437.0,0.27949533]
[1738848077981,0.00022408,98439.0,98437.0,0.27849533]
[1738848078629,0.00022408,98439.0,98437.0,0.26901805]
[1738848078830,0.00022408,98439.0,98437.0,0.27301805]
[1738848082330,0.00022408,98439.0,98437.0,0.28248357]
[1738848082537,0.00022408,98439.0,98437.0,0.28448357]
[1738848083642,0.00022408,98439.0,98437.0,0.28048357]
[1738848083854,0.00022408,98439.0,98437.0,0.47338182]
[1738848084061,0.00022408,98439.0,98437.0,0.48138182]
[1738848084288,0.00022408,98439.0,98437.0,0.49652032]
[1738848084868,0.00022408,98439.0,98437.0,0.48652032]
[1738848085075,0.00022408,98439.0,98437.0,0.57192032]
[1738848085411,0.00022408,98439.0,98437.0,0.56392032]
[1738848085621,0.00022408,98439.0,98438.0,0.173]
[1738848085850,0.58628482,98464.0,98446.0,0.15]
[1738848086219,0.0001067,98467.0,98466.0,0.152336]
[1738848086434,0.0001067,98467.0,98466.0,0.25483965]
[1738848086634,0.0001067,98467.0,98466.0,0.25854378]
[1738848086851,0.0001067,98467.0,98466.0,0.28154378]
[1738848087029,0.0001067,98467.0,98466.0,0.43154378]
[1738848087464,0.0001067,98467.0,98466.0,0.4410093]
[1738848088036,0.0001067,98467.0,98466.0,0.4470093]
[1738848088419,0.0001067,98467.0,98466.0,0.4410093]
[1738848088621,0.0001067,98467.0,98466.0,0.4480093]
[1738848089479,0.0001067,98467.0,98466.0,0.4490093]
[1738848089888,0.0001067,98467.0,98466.0,0.45935004]
[1738848090099,0.0001067,98467.0,98466.0,0.45235004]
[1738848090308,0.0001067,98467.0,98466.0,0.45935004]
[1738848090549,0.0001067,98467.0,98466.0,0.45235004]
[1738848090971,0.0001067,98467.0,98466.0,0.45935004]
[1738848091178,0.0001067,98467.0,98466.0,0.45135004]
[1738848091382,0.0001067,98467.0,98466.0,0.45335004]
[1738848091610,0.0001067,98467.0,98466.0,0.46235004]
[1738848092455,0.58639152,98467.0,98466.0,0.43935004]
[1738848092694,0.58639152,98467.0,98466.0,0.02416965]
[1738848092934,0.58639152,98467.0,98466.0,0.011]
[1738848093169,0.58639152,98467.0,98466.0,0.16762528]
[1738848093407,0.58639152,98467.0,98466.0,0.15862528]
[1738848093612,0.58639152,98467.0,98466.0,0.16162528]
[1738848094045,0.58639152,98467.0,98466.0,0.15862528]
[1738848094285,0.58639152,98467.0,98466.0,0.00928928]
[1738848094530,0.73872652,98467.0,98466.0,0.00728928]
[1738848094780,0.73872652,98467.0,98466.0,0.003]
[1738848095645,0.81952652,98467.0,98466.0,0.003]
[1738848095874,0.66719152,98467.0,98466.0,0.003]
[1738848096727,0.81952652,98467.0,98466.0,0.003]
[1738848100459,0.81952652,98467.0,98063.0,60.00007]
[1738848100460,1.12964948,98467.0,98445.0,0.00101568]
[1738848100632,0.278673,98442.0,98441.0,0.00022428]
[1738848100834,1.06746147,98442.0,98441.0,0.00022428]
[1738848101243,0.91508847,98442.0,98441.0,0.00022428]
[1738848102048,0.91708847,98442.0,98441.0,0.00022428]
[1738848103377,0.91508847,98442.0,98441.0,0.00022428]
[1738848103691,0.91808847,98442.0,98441.0,0.00022428]
[1738848104106,1.07046147,98442.0,98441.0,0.00022428]
[1738848105185,0.96795782,98442.0,98441.0,0.00022428]
[1738848106543,1.29305782,98442.0,98441.0,0.00022428]
[1738848106949,1.29605782,98442.0,98441.0,0.00022428]
[1738848107807,1.29005782,98442.0,98441.0,0.00022428]
[1738848108011,1.29305782,98442.0,98441.0,0.00022428]
[1738848108603,1.04068482,98442.0,98441.0,0.00022428]
[1738848109835,1.04068482,98442.0,98441.0,0.00444595]
[1738848110045,1.03768482,98442.0,98441.0,0.17336632]
[1738848110250,0.99198482,98442.0,98441.0,0.17336632]
[1738848110481,0.99298482,98442.0,98441.0,0.17758799]
[1738848110687,0.99298482,98442.0,98441.0,0.15682095]
[1738848111332,0.99198482,98442.0,98441.0,0.15682095]
[1738848111531,0.99198482,98442.0,98441.0,0.15782095]
[1738848112170,0.99198482,98442.0,98441.0,0.15359928]
[1738848112404,0.99198482,98442.0,98441.0,0.15829241]
[1738848114455,0.98958482,98442.0,98441.0,0.15829241]
[1738848117359,0.98958482,98442.0,98439.0,0.203169]
[1738848117360,0.302378,98439.0,98438.0,4.64e-05]
[1738848117599,0.66288165,98439.0,98438.0,4.64e-05]
[1738848117839,0.477394,98429.0,98393.0,0.203265]
[1738848118054,1.16618247,98429.0,98399.0,0.15244]
[1738848118264,1.16618247,98429.0,98399.0,0.203252]
[1738848118462,1.06618247,98429.0,98399.0,0.203252]
[1738848118662,1.16618247,98429.0,98391.0,0.01027297]
[1738848118873,1.16618247,98429.0,98397.0,0.203257]
[1738848119070,1.16618247,98429.0,98394.0,0.203262]
[1738848119279,1.28933796,98429.0,98382.0,0.203288]
[1738848119521,1.18683431,98429.0,98385.0,0.15]
[1738848119727,1.33683431,98429.0,98385.0,0.302461]
[1738848119984,1.33683431,98429.0,98381.0,0.0001067]
[1738848120132,1.33683431,98429.0,98388.0,0.152456]
[1738848120909,1.69493431,98429.0,98385.0,0.01032109]
[1738848121119,0.325401,98424.0,98381.0,0.0001067]
[1738848121329,0.55998465,98424.0,98381.0,0.1525727]
[1738848121533,0.58505323,98424.0,98381.0,0.1525727]
[1738848121930,0.58505323,98424.0,98381.0,0.0001067]
[1738848122074,0.58505323,98424.0,98383.0,0.152464]
[1738848122478,0.58505323,98424.0,98381.0,0.0001067]
[1738848122479,0.58505323,98424.0,98384.0,0.152463]
[1738848123064,0.55998465,98424.0,98391.0,0.152452]
[1738848123271,0.55998465,98424.0,98381.0,0.0001067]
[1738848123482,0.55998465,98424.0,98386.0,0.203278]
[1738848123686,0.55998465,98424.0,98387.0,0.152458]
[1738848123921,0.56498465,98424.0,98389.0,0.152455]
[1738848124124,0.56498465,98424.0,98388.0,0.152457]
[1738848124322,0.89008465,98424.0,98386.0,0.152459]
[1738848124530,0.89008465,98424.0,98386.0,0.203279]
[1738848124751,0.89008465,98424.0,98381.0,0.0001067]
[1738848124752,0.3324,98382.0,98381.0,0.0001067]
[1738848124949,1.25173447,98382.0,98381.0,0.0001067]
[1738848126126,1.25178071,98382.0,98381.0,0.0001067]
[1738848126914,1.27184279,98382.0,98381.0,0.0001067]
[1738848128110,1.27784279,98382.0,98381.0,0.0011067]
[1738848129393,1.28784279,98382.0,98381.0,0.0011067]
[1738848129525,1.28784279,98382.0,98381.0,7e-07]
[1738848130358,1.62328956,98382.0,98381.0,7e-07]
[1738848131863,0.441668,98381.0,98380.0,4e-07]
[1738848132043,0.6696753,98381.0,98380.0,4e-07]
[1738848132870,0.56717165,98381.0,98380.0,4e-07]
[1738848134382,0.57617165,98381.0,98380.0,0.0010004]
[1738848134581,0.57817165,98381.0,98380.0,0.0010004]
[1738848137112,0.635487,98369.0,98368.0,7e-08]
[1738848137319,0.648521,98347.0,98346.0,0.0001068]
[1738848137524,1.34730947,98347.0,98346.0,8e-07]
[1738848138143,1.33730947,98347.0,98346.0,8e-07]
[1738848138552,1.34130947,98347.0,98346.0,8e-07]
[1738848138708,1.34130947,98347.0,98346.0,0.000464]
[1738848139636,1.3716501,98347.0,98346.0,0.000464]
[1738848139822,1.3676501,98347.0,98346.0,0.000464]
[1738848140262,1.3766501,98347.0,98346.0,0.000464]
[1738848140462,1.3726501,98347.0,98346.0,0.000464]
[1738848140600,1.47515375,98347.0,98346.0,0.000464]
[1738848140805,1.48415375,98347.0,98346.0,0.001464]
[1738848141011,1.47915375,98347.0,98346.0,0.001464]
[1738848141327,1.3796501,98347.0,98346.0,0.001464]
[1738848142086,1.7047501,98347.0,98346.0,0.001464]
[1738848142769,1.7126301,98347.0,98346.0,0.001464]
[1738848144627,1.7047501,98347.0,98346.0,0.001464]
[1738848144837,1.7126301,98347.0,98346.0,0.001464]
[1738848145256,1.73319908,98347.0,98346.0,0.001464]
[1738848145463,1.6896301,98347.0,98346.0,0.001464]
[1738848146773,0.01,98341.0,98340.0,4.2e-07]
[1738848147000,0.01,98341.0,98324.0,0.0001067]
[1738848147001,0.651247,98330.0,98324.0,0.0001067]
[1738848147211,1.34003547,98330.0,98324.0,0.0001067]
[1738848147416,1.34003547,98330.0,98329.0,0.00019638]
[1738848147847,1.76763912,98330.0,98329.0,0.00019638]
[1738848148058,0.173,98329.0,98324.0,0.0001067]
[1738848148262,0.325555,98325.0,98324.0,0.00024524]
[1738848148468,0.42805865,98325.0,98324.0,0.00024524]
[1738848148673,0.83815865,98325.0,98324.0,0.00024524]
[1738848148900,0.99063914,98325.0,98324.0,0.00024524]
[1738848149250,0.99063914,98325.0,98311.0,0.0002]
[1738848149251,0.352575,98312.0,98311.0,0.0002]
[1738848149452,1.29556347,98312.0,98311.0,0.0002]
[1738848149925,1.34066347,98312.0,98311.0,0.0002]
[1738848150047,1.64276347,98312.0,98311.0,0.0002]
[1738848150313,1.52434347,98312.0,98311.0,0.0002]
[1738848150793,1.53234347,98312.0,98311.0,0.0002]
[1738848150969,1.38434347,98312.0,98311.0,0.0002]
[1738848151168,1.37634347,98312.0,98311.0,0.0002]
[1738848151601,1.37934347,98312.0,98311.0,0.0002]
[1738848151945,1.37146347,98312.0,98311.0,0.0002]
[1738848152145,1.37734347,98312.0,98311.0,0.0002]
[1738848152530,1.37834347,98312.0,98311.0,0.0002]
[1738848153010,1.02326482,98312.0,98311.0,0.0002]
[1738848153223,0.92326482,98312.0,98311.0,0.0002]
[1738848153431,0.91238482,98312.0,98311.0,0.0002]
[1738848153639,0.91138482,98312.0,98311.0,0.0002]
[1738848153833,0.91438482,98312.0,98311.0,0.007875]
[1738848154018,0.91238482,98312.0,98311.0,0.0002]
[1738848154246,1.06495982,98312.0,98311.0,0.0002]
[1738848154893,0.91238482,98312.0,98311.0,0.0002]
[1738848155095,0.91238482,98312.0,98311.0,0.152777]
[1738848155306,0.91238482,98312.0,98311.0,0.160452]
[1738848156350,0.91238482,98312.0,98311.0,0.007875]
[1738848156744,0.91238482,98312.0,98311.0,0.0037235]
[1738848156919,0.91138482,98312.0,98311.0,0.0037235]
[1738848157121,0.91138482,98312.0,98311.0,0.0113985]
[1738848157321,0.91138482,98312.0,98311.0,0.0037235]
[1738848158678,1.06395982,98312.0,98311.0,0.0037235]
[1738848159098,0.91138482,98312.0,98311.0,0.1563005]
[1738848159314,0.58628482,98312.0,98311.0,0.1563005]
[1738848159512,0.58628482,98312.0,98311.0,0.16401132]
[1738848159716,0.58628482,98312.0,98311.0,0.23941132]
[1738848159923,0.58628482,98312.0,98311.0,0.28911132]
[1738848160369,0.58628482,98312.0,98311.0,0.55121472]
[1738848160592,0.58628482,98322.0,98312.0,0.15]
[1738848160798,0.58628482,98322.0,98321.0,0.152561]
[1738848161007,0.58628482,98322.0,98321.0,0.16025738]
[1738848161466,0.58628482,98322.0,98321.0,0.16975023]
[1738848161669,0.58628482,98322.0,98321.0,0.17327373]
[1738848161880,0.58728482,98322.0,98321.0,0.17327373]
[1738848162318,0.58628482,98322.0,98321.0,0.17327373]
[1738848162528,0.58628482,98322.0,98321.0,0.17427373]
[1738848163515,0.58728482,98322.0,98321.0,0.17427373]
[1738848164842,0.58728482,98322.0,98321.0,0.27677738]
[1738848165094,0.001,98322.0,98321.0,0.36234262]
[1738848166348,0.001,98322.0,98321.0,0.37753118]
[1738848171769,0.001,98322.0,98321.0,0.19962753]
[1738848171979,0.001,98322.0,98321.0,0.04706653]
[1738848172181,0.001,98322.0,98321.0,0.19962753]
[1738848172388,0.001,98322.0,98321.0,0.19973443]
[1738848172797,0.001,98322.0,98321.0,0.34314139]
[1738848173030,0.001,98322.0,98321.0,0.28704952]
[1738848175497,0.001,98322.0,98321.0,0.30222731]
[1738848178800,0.001,98322.0,98321.0,0.30460531]
[1738848183484,0.001,98322.0,98321.0,0.45460531]
[1738848184310,0.001,98322.0,98321.0,0.45360531]
[1738848184514,0.0002245,98324.0,98323.0,0.302558]
[1738848184722,0.0002245,98324.0,98323.0,0.40506165]
[1738848184934,0.0002245,98324.0,98323.0,0.41862288]
[1738848185527,0.0002245,98324.0,98323.0,0.44329352]
[1738848186208,0.0002245,98324.0,98323.0,0.03823187]
[1738848186417,0.0002245,98324.0,98323.0,0.18313014]
[1738848186642,0.0002245,98324.0,98323.0,0.19078276]
[1738848186861,0.0002245,98324.0,98323.0,0.03822476]
[1738848187070,0.0002245,98324.0,98323.0,0.04322476]
[1738848187071,0.0012245,98324.0,98323.0,0.04322476]
[1738848187288,0.0012245,98324.0,98323.0,0.04522476]
[1738848187497,0.0012245,98324.0,98323.0,0.03757214]
[1738848187640,0.0012245,98324.0,98323.0,0.19778276]
[1738848188055,0.0012245,98324.0,98323.0,0.18260497]
[1738848189541,0.0012245,98324.0,98323.0,0.03004697]
[1738848189696,0.1537805,98324.0,98323.0,0.03004697]
[1738848189903,0.1537805,98324.0,98323.0,0.02239435]
[1738848190098,0.0012245,98324.0,98323.0,0.02239435]
[1738848190483,0.0012245,98324.0,98323.0,0.02055412]
[1738848190911,0.0012245,98324.0,98323.0,0.0129015]
[1738848192415,0.0012245,98324.0,98323.0,0.1654595]
[1738848192641,0.0012245,98324.0,98323.0,0.17311837]
[1738848193638,0.0012245,98324.0,98323.0,0.27663898]
[1738848193840,0.0012245,98324.0,98323.0,0.27562202]
[1738848194063,0.0012245,98324.0,98323.0,0.30037598]
[1738848194639,0.0012245,98324.0,98323.0,0.45037598]
[1738848196862,0.00013871,98325.0,98324.0,0.15]
[1738848197106,0.00013871,98325.0,98324.0,0.40607648]
[1738848197311,0.00013871,98325.0,98324.0,0.41273159]
[1738848197520,0.00013871,98325.0,98324.0,0.43573159]
[1738848197729,0.00013871,98325.0,98324.0,0.44573159]
[1738848197937,0.00013871,98325.0,98324.0,0.48225311]
[1738848198144,0.00113871,98325.0,98324.0,0.47738705]
[1738848198357,0.00113871,98325.0,98324.0,0.47638705]
[1738848198554,0.00013871,98325.0,98324.0,0.50700539]
[1738848198761,0.00113871,98325.0,98324.0,0.51000539]
[1738848199186,0.00113871,98325.0,98324.0,0.0413274]
[1738848199403,0.07863871,98325.0,98324.0,0.0413274]
[1738848199619,0.07863871,98325.0,98324.0,0.1938834]
[1738848199821,0.07863871,98325.0,98324.0,0.1918834]
[1738848200042,0.00113871,98325.0,98324.0,0.29438705]
[1738848200242,0.00013871,98325.0,98324.0,0.29838705]
[1738848200697,0.00113871,98325.0,98324.0,0.30738705]
[1738848200898,0.00013871,98325.0,98324.0,0.29838705]
[1738848201333,0.00113871,98325.0,98324.0,0.30538705]
[1738848201492,0.00113871,98325.0,98324.0,0.30038705]
[1738848202072,0.00113871,98325.0,98324.0,0.30238705]
[1738848207165,0.58742353,98325.0,98324.0,0.30238705]
[1738848207342,0.58742353,98325.0,98324.0,0.30249395]
[1738848208389,0.58764803,98325.0,98324.0,0.30249395]
[1738848209433,0.00136321,98325.0,98324.0,0.30249395]
[1738848210770,0.00136321,98325.0,98324.0,0.32152789]
[1738848211259,0.00136321,98325.0,98324.0,0.29677393]
[1738848211757,0.00136321,98325.0,98324.0,0.32151805]
[1738848212986,0.00136321,98325.0,98324.0,0.47151805]
[1738848213409,0.00136321,98325.0,98324.0,0.49451805]
[1738848213612,0.00136321,98325.0,98324.0,0.56991805]
[1738848213823,0.16340879,98356.0,98355.0,0.152508]
[1738848214031,0.16354804,98356.0,98355.0,0.152508]
[1738848214244,0.08233925,98356.0,98355.0,0.16599903]
[1738848214459,0.08233925,98356.0,98355.0,0.18503297]
[1738848215068,0.08233925,98356.0,98355.0,0.21177709]
[1738848216793,0.00013925,98356.0,98355.0,0.21177709]
[1738848217415,0.00013925,98356.0,98355.0,0.31428074]
[1738848218055,0.00013925,98356.0,98355.0,0.32466533]
[1738848218278,0.00013925,98356.0,98355.0,0.47466533]
[1738848218683,0.00013925,98356.0,98355.0,0.48166533]
[1738848218805,0.00013925,98356.0,98355.0,0.47966533]
[1738848219317,0.00013925,98356.0,98355.0,0.48266533]
[1738848220566,0.00036375,98356.0,98355.0,0.48266533]
[1738848225240,0.00036375,98356.0,98355.0,0.47966533]
[1738848225598,0.00036375,98356.0,98355.0,0.47566533]
[1738848225795,0.00136375,98356.0,98355.0,0.48366533]
[1738848227677,0.00036375,98356.0,98355.0,0.47266533]
[1738848228027,0.00036375,98356.0,98355.0,0.47966533]
[1738848228231,0.00036375,98356.0,98355.0,0.47466533]
[1738848228436,0.00036375,98356.0,98355.0,0.47266533]
[1738848228664,0.00036375,98356.0,98355.0,0.47766533]
[1738848228870,0.00036375,98356.0,98355.0,0.47866533]
[1738848230213,0.00036375,98356.0,98355.0,0.22616168]
[1738848230418,0.08116375,98356.0,98355.0,0.22616168]
[1738848231229,0.00036375,98356.0,98355.0,0.21093453]
[1738848231637,0.00036375,98356.0,98355.0,0.31343818]
[1738848238757,0.08216375,98356.0,98355.0,0.21093453]
[1738848238902,0.08216375,98356.0,98355.0,0.23202798]
[1738848240170,0.08216375,98356.0,98355.0,0.07951998]
[1738848240373,0.08216375,98356.0,98355.0,0.08349878]
[1738848240703,0.08216375,98356.0,98355.0,0.06240533]
[1738848240881,0.23467075,98356.0,98355.0,0.05202074]
[1738848241072,0.08216375,98356.0,98355.0,0.05202074]
[1738848241328,0.08216375,98356.0,98355.0,0.04443121]
[1738848242117,0.08216375,98356.0,98355.0,0.02539727]
[1738848242319,0.08216375,98356.0,98355.0,0.03294372]
[1738848242529,0.23467075,98356.0,98355.0,0.02539727]
[1738848244912,0.28147075,98356.0,98355.0,0.02539727]
[1738848245296,0.28147075,98356.0,98355.0,0.0098803]
[1738848245759,0.28147075,98356.0,98355.0,0.0108803]
[1738848246414,0.3839744,98356.0,98355.0,0.0108803]
[1738848247027,0.7090744,98356.0,98355.0,0.0108803]
[1738848248089,0.7090744,98356.0,98355.0,0.0098803]
[1738848248337,0.8090744,98356.0,98355.0,0.0098803]
[1738848248558,0.8120744,98356.0,98355.0,0.0098803]
[1738848248781,0.82232287,98356.0,98355.0,0.0098803]
[1738848249383,0.82032287,98356.0,98355.0,0.0098803]
[1738848249911,0.81932287,98356.0,98355.0,0.0098803]
[1738848250184,0.82032287,98356.0,98355.0,0.0098803]
[1738848251068,0.7100744,98356.0,98355.0,0.0098803]
[1738848251411,0.7120744,98356.0,98355.0,0.0098803]
[1738848251623,0.7100744,98356.0,98355.0,0.0098803]
[1738848252037,0.7120744,98356.0,98355.0,0.0098803]
[1738848255273,0.60957075,98356.0,98355.0,0.0098803]
[1738848255506,0.61745075,98356.0,98355.0,0.0098803]
[1738848259179,0.7199544,98356.0,98355.0,0.0098803]
[1738848266924,0.7120744,98356.0,98355.0,0.0098803]
[1738848267095,0.61745075,98356.0,98355.0,0.0098803]
[1738848267301,0.46494375,98356.0,98355.0,0.0098803]
[1738848267498,0.61745075,98356.0,98355.0,0.0098803]
[1738848267989,0.82245805,98356.0,98355.0,0.0098803]
[1738848268188,0.97245805,98356.0,98355.0,0.0098803]
[1738848268588,0.8699544,98356.0,98355.0,0.0098803]
[1738848269178,0.8929544,98356.0,98355.0,0.0098803]
[1738848269553,0.90297921,98356.0,98355.0,0.0098803]
[1738848269754,0.90297921,98356.0,98355.0,3e-07]
[1738848269974,0.90197921,98356.0,98355.0,3e-07]
[1738848270197,1.00448286,98356.0,98355.0,3e-07]